[Event "Titled Tuesday Blitz October 31 Early 2023"]
[White "Brown, Andrew"]
[Black "Deuterio010"]
[WhiteFideId "3206513"]
[WhiteElo "2550"]
[BlackElo "2461"]
[Result "0-1"]
[Round "10"]
[TimeControl "180+1"]
[Date "2023.10.31"]
[WhiteClock "0:00:01"]
[BlackClock "0:00:53"]
[Board "70"]

1. d4 {[%clk 0:03:00]}  d5 {[%clk 0:02:58]} 2. Nf3 {[%clk 0:03:01]}  Nf6 {[%clk 0:02:55]} 3. c4 {[%clk 0:03:01]}  dxc4 {[%clk 0:02:56]} 4. Nc3 {[%clk 0:03:00]}  a6 {[%clk 0:02:56]} 5. a4 {[%clk 0:02:59]}  e6 {[%clk 0:02:52]} 6. e4 {[%clk 0:02:58]}  Bb4 {[%clk 0:02:48]} 7. e5 {[%clk 0:02:57]}  Nd5 {[%clk 0:02:30]} 8. Bd2 {[%clk 0:02:57]}  c5 {[%clk 0:02:26]} 9. Bxc4 {[%clk 0:02:36]}  cxd4 {[%clk 0:02:25]} 10. Nxd5 {[%clk 0:02:21]}  exd5 {[%clk 0:02:11]} 11. Bxb4 {[%clk 0:02:12]}  dxc4 {[%clk 0:02:09]} 12. Nxd4 {[%clk 0:02:08]}  Nc6 {[%clk 0:02:08]} 13. Nxc6 {[%clk 0:02:07]}  Qxd1+ {[%clk 0:02:07]} 14. Rxd1 {[%clk 0:02:07]}  bxc6 {[%clk 0:02:08]} 15. O-O {[%clk 0:01:36]}  Be6 {[%clk 0:02:03]} 16. f4 {[%clk 0:01:32]}  g6 {[%clk 0:01:58]} 17. h3 {[%clk 0:01:30]}  h5 {[%clk 0:01:58]} 18. Rd6 {[%clk 0:01:27]}  Bd5 {[%clk 0:01:57]} 19. f5 {[%clk 0:01:11]}  gxf5 {[%clk 0:01:46]} 20. Rxf5 {[%clk 0:01:08]}  h4 {[%clk 0:01:40]} 21. Rdf6 {[%clk 0:00:46]}  Rb8 {[%clk 0:01:32]} 22. Ba3 {[%clk 0:00:46]}  Rb3 {[%clk 0:01:20]} 23. Rf2 {[%clk 0:00:20]}  Rg8 {[%clk 0:01:14]} 24. Kh2 {[%clk 0:00:18]}  Rbg3 {[%clk 0:01:09]} 25. R6f3 {[%clk 0:00:11]}  Bxf3 {[%clk 0:01:07]} 26. gxf3 {[%clk 0:00:10]}  Rg1 {[%clk 0:01:07]} 27. f4 {[%clk 0:00:09]}  Ra1 {[%clk 0:00:58]} 28. a5 {[%clk 0:00:08]}  Rgg1 {[%clk 0:00:53]} 29. Rc2 {[%clk 0:00:08]}  Rh1+ {[%clk 0:00:51]} 30. Kg2 {[%clk 0:00:08]}  Rag1+ {[%clk 0:00:51]} 31. Kf2 {[%clk 0:00:08]}  Rh2+ {[%clk 0:00:50]} 32. Kxg1 {[%clk 0:00:09]}  Rxc2 {[%clk 0:00:51]} 33. f5 {[%clk 0:00:07]}  Kd7 {[%clk 0:00:50]} 34. Kh1 {[%clk 0:00:04]}  Re2 {[%clk 0:00:50]} 35. e6+ {[%clk 0:00:03]}  fxe6 {[%clk 0:00:51]} 36. f6 {[%clk 0:00:03]}  Rf2 {[%clk 0:00:51]} 37. Be7 {[%clk 0:00:03]}  Ke8 {[%clk 0:00:51]} 38. Kg1 {[%clk 0:00:03]}  Rxb2 {[%clk 0:00:52]} 39. Bc5 {[%clk 0:00:03]}  c3 {[%clk 0:00:51]} 40. Bd4 {[%clk 0:00:03]}  Rb1+ {[%clk 0:00:52]} 41. Kf2 {[%clk 0:00:01]}  c2 {[%clk 0:00:53]} 0-1


[Site "https://www.chess.com"]

[Event "Titled Tuesday Blitz October 31 Early 2023"]
[White "Matveeva, Olga"]
[Black "Goltseva, Ekaterina"]
[WhiteFideId "24107018"]
[BlackFideId "24173770"]
[WhiteElo "2426"]
[BlackElo "2540"]
[Result "0-1"]
[Round "10"]
[TimeControl "180+1"]
[Date "2023.10.31"]
[WhiteClock "0:00:00"]
[BlackClock "0:00:23"]
[Board "71"]

1. d4 {[%clk 0:03:00]}  Nf6 {[%clk 0:02:59]} 2. c4 {[%clk 0:03:01]}  e6 {[%clk 0:02:59]} 3. g3 {[%clk 0:03:01]}  Bb4+ {[%clk 0:02:57]} 4. Bd2 {[%clk 0:03:02]}  Be7 {[%clk 0:02:57]} 5. Bg2 {[%clk 0:03:02]}  d5 {[%clk 0:02:57]} 6. Nf3 {[%clk 0:03:01]}  O-O {[%clk 0:02:58]} 7. O-O {[%clk 0:03:01]}  Nbd7 {[%clk 0:02:59]} 8. Qc2 {[%clk 0:03:02]}  c6 {[%clk 0:02:57]} 9. Rd1 {[%clk 0:03:02]}  Ne4 {[%clk 0:02:57]} 10. Bf4 {[%clk 0:02:59]}  f5 {[%clk 0:02:51]} 11. Nc3 {[%clk 0:02:58]}  g5 {[%clk 0:02:51]} 12. Be5 {[%clk 0:02:55]}  g4 {[%clk 0:02:48]} 13. Ne1 {[%clk 0:02:51]}  Nxe5 {[%clk 0:02:45]} 14. dxe5 {[%clk 0:02:52]}  Qe8 {[%clk 0:02:28]} 15. cxd5 {[%clk 0:02:46]}  exd5 {[%clk 0:02:22]} 16. Nd3 {[%clk 0:02:36]}  Be6 {[%clk 0:02:16]} 17. Nf4 {[%clk 0:02:35]}  Bd8 {[%clk 0:02:07]} 18. e3 {[%clk 0:02:16]}  Bf7 {[%clk 0:01:54]} 19. Nxe4 {[%clk 0:02:08]}  fxe4 {[%clk 0:01:53]} 20. Qc3 {[%clk 0:01:59]}  Bc7 {[%clk 0:01:49]} 21. e6 {[%clk 0:01:56]}  Bxe6 {[%clk 0:01:47]} 22. Nxe6 {[%clk 0:01:30]}  Qxe6 {[%clk 0:01:48]} 23. b4 {[%clk 0:01:28]}  Be5 {[%clk 0:01:47]} 24. Qc5 {[%clk 0:01:25]}  Bxa1 {[%clk 0:01:43]} 25. Rxa1 {[%clk 0:01:26]}  Qf6 {[%clk 0:01:42]} 26. Rf1 {[%clk 0:01:27]}  b6 {[%clk 0:01:42]} 27. Qc2 {[%clk 0:01:26]}  Rac8 {[%clk 0:01:40]} 28. Rd1 {[%clk 0:01:25]}  h5 {[%clk 0:01:38]} 29. Bf1 {[%clk 0:01:24]}  Qe5 {[%clk 0:01:35]} 30. Ba6 {[%clk 0:01:23]}  Rc7 {[%clk 0:01:33]} 31. a4 {[%clk 0:01:22]}  Kg7 {[%clk 0:01:29]} 32. a5 {[%clk 0:01:20]}  Rf6 {[%clk 0:01:29]} 33. axb6 {[%clk 0:01:18]}  axb6 {[%clk 0:01:30]} 34. Bf1 {[%clk 0:01:15]}  Rcf7 {[%clk 0:01:30]} 35. Rd2 {[%clk 0:01:15]}  Qd6 {[%clk 0:01:26]} 36. Qb2 {[%clk 0:01:14]}  Kg6 {[%clk 0:01:23]} 37. b5 {[%clk 0:01:10]}  c5 {[%clk 0:01:11]} 38. Bc4 {[%clk 0:01:10]}  Rf5 {[%clk 0:01:07]} 39. Qh8 {[%clk 0:01:03]}  Rf8 {[%clk 0:00:56]} 40. Qb2 {[%clk 0:00:57]}  Qe6 {[%clk 0:00:52]} 41. Bf1 {[%clk 0:00:52]}  h4 {[%clk 0:00:42]} 42. Qa2 {[%clk 0:00:48]}  Qf6 {[%clk 0:00:39]} 43. Bg2 {[%clk 0:00:28]}  h3 {[%clk 0:00:36]} 44. Bf1 {[%clk 0:00:27]}  d4 {[%clk 0:00:34]} 45. exd4 {[%clk 0:00:23]}  e3 {[%clk 0:00:31]} 46. Rc2 {[%clk 0:00:11]}  Rxf2 {[%clk 0:00:28]} 47. Bd3+ {[%clk 0:00:11]}  Kh6 {[%clk 0:00:24]} 48. Qa7 {[%clk 0:00:00]}  Rf1+ {[%clk 0:00:23]} 0-1


[Site "https://www.chess.com"]

[Event "Titled Tuesday Blitz October 31 Early 2023"]
[White "Yaksin, Oleg"]
[Black "Seresin, Francesco"]
[WhiteFideId "24105880"]
[BlackFideId "886335"]
[WhiteElo "2533"]
[BlackElo "2402"]
[Result "1-0"]
[Round "10"]
[TimeControl "180+1"]
[Date "2023.10.31"]
[WhiteClock "0:00:04"]
[BlackClock "0:00:02"]
[Board "74"]

1. d4 {[%clk 0:02:54]}  Nf6 {[%clk 0:02:58]} 2. c4 {[%clk 0:02:55]}  e6 {[%clk 0:02:59]} 3. g3 {[%clk 0:02:55]}  d5 {[%clk 0:02:58]} 4. Nf3 {[%clk 0:02:55]}  Bb4+ {[%clk 0:02:55]} 5. Bd2 {[%clk 0:02:54]}  Be7 {[%clk 0:02:56]} 6. Bg2 {[%clk 0:02:55]}  O-O {[%clk 0:02:56]} 7. O-O {[%clk 0:02:55]}  c6 {[%clk 0:02:57]} 8. Qc2 {[%clk 0:02:56]}  Nbd7 {[%clk 0:02:57]} 9. Bf4 {[%clk 0:02:56]}  Ne4 {[%clk 0:02:54]} 10. Rd1 {[%clk 0:02:54]}  f5 {[%clk 0:02:52]} 11. Nc3 {[%clk 0:02:52]}  g5 {[%clk 0:02:48]} 12. Be3 {[%clk 0:02:47]}  h6 {[%clk 0:02:46]} 13. Ne5 {[%clk 0:02:39]}  Bf6 {[%clk 0:02:45]} 14. f4 {[%clk 0:02:32]}  Kg7 {[%clk 0:02:34]} 15. Kh1 {[%clk 0:02:23]}  Qe7 {[%clk 0:02:28]} 16. Rab1 {[%clk 0:02:19]}  h5 {[%clk 0:02:21]} 17. Nxe4 {[%clk 0:02:08]}  fxe4 {[%clk 0:02:19]} 18. Qd2 {[%clk 0:01:56]}  g4 {[%clk 0:02:11]} 19. b4 {[%clk 0:01:50]}  Nb6 {[%clk 0:02:03]} 20. c5 {[%clk 0:01:34]}  Bxe5 {[%clk 0:02:03]} 21. dxe5 {[%clk 0:01:24]}  Nc4 {[%clk 0:02:02]} 22. Qc3 {[%clk 0:01:24]}  Nxe3 {[%clk 0:01:53]} 23. Qxe3 {[%clk 0:01:23]}  Bd7 {[%clk 0:01:54]} 24. a4 {[%clk 0:01:22]}  a6 {[%clk 0:01:54]} 25. Qd4 {[%clk 0:01:22]}  h4 {[%clk 0:01:48]} 26. Bxe4 {[%clk 0:01:17]}  Rh8 {[%clk 0:01:38]} 27. Kg1 {[%clk 0:01:13]}  Raf8 {[%clk 0:01:10]} 28. Bg2 {[%clk 0:01:12]}  Be8 {[%clk 0:01:08]} 29. e4 {[%clk 0:01:08]}  Bg6 {[%clk 0:01:02]} 30. Rb3 {[%clk 0:00:57]}  Rh5 {[%clk 0:00:56]} 31. f5 {[%clk 0:00:53]}  exf5 {[%clk 0:00:53]} 32. exd5 {[%clk 0:00:54]}  cxd5 {[%clk 0:00:50]} 33. Qxd5 {[%clk 0:00:48]}  h3 {[%clk 0:00:43]} 34. Qxb7 {[%clk 0:00:46]}  Rf7 {[%clk 0:00:39]} 35. Qxe7 {[%clk 0:00:34]}  Rxe7 {[%clk 0:00:40]} 36. Bd5 {[%clk 0:00:32]}  Rxe5 {[%clk 0:00:34]} 37. c6 {[%clk 0:00:31]}  f4 {[%clk 0:00:33]} 38. c7 {[%clk 0:00:28]}  Rxd5 {[%clk 0:00:20]} 39. Rxd5 {[%clk 0:00:26]}  Rxd5 {[%clk 0:00:20]} 40. c8=Q {[%clk 0:00:25]}  Rd1+ {[%clk 0:00:21]} 41. Kf2 {[%clk 0:00:24]}  Rd2+ {[%clk 0:00:21]} 42. Ke1 {[%clk 0:00:23]}  Rxh2 {[%clk 0:00:21]} 43. Rc3 {[%clk 0:00:15]}  Rh1+ {[%clk 0:00:18]} 44. Kf2 {[%clk 0:00:15]}  fxg3+ {[%clk 0:00:17]} 45. Kxg3 {[%clk 0:00:14]}  Rg1+ {[%clk 0:00:18]} 46. Kh4 {[%clk 0:00:12]}  h2 {[%clk 0:00:16]} 47. Rc7+ {[%clk 0:00:11]}  Bf7 {[%clk 0:00:17]} 48. Rxf7+ {[%clk 0:00:10]}  Kxf7 {[%clk 0:00:17]} 49. Qf5+ {[%clk 0:00:10]}  Ke8 {[%clk 0:00:16]} 50. Qe5+ {[%clk 0:00:10]}  Kd8 {[%clk 0:00:17]} 51. Qxh2 {[%clk 0:00:10]}  Rd1 {[%clk 0:00:16]} 52. Qf4 {[%clk 0:00:06]}  Rd7 {[%clk 0:00:13]} 53. Kxg4 {[%clk 0:00:06]}  Kc8 {[%clk 0:00:14]} 54. Qe4 {[%clk 0:00:06]}  Kc7 {[%clk 0:00:14]} 55. Kf3 {[%clk 0:00:07]}  Kd6 {[%clk 0:00:12]} 56. Qd4+ {[%clk 0:00:05]}  Kc6 {[%clk 0:00:12]} 57. Qc5+ {[%clk 0:00:06]}  Kb7 {[%clk 0:00:12]} 58. Ke4 {[%clk 0:00:06]}  Rc7 {[%clk 0:00:13]} 59. Qd5+ {[%clk 0:00:07]}  Rc6 {[%clk 0:00:13]} 60. Ke5 {[%clk 0:00:07]}  Kb6 {[%clk 0:00:13]} 61. Qd4+ {[%clk 0:00:07]}  Kb7 {[%clk 0:00:13]} 62. b5 {[%clk 0:00:07]}  axb5 {[%clk 0:00:13]} 63. axb5 {[%clk 0:00:07]}  Rc7 {[%clk 0:00:13]} 64. Qd6 {[%clk 0:00:06]}  Rh7 {[%clk 0:00:10]} 65. Qc6+ {[%clk 0:00:06]}  Ka7 {[%clk 0:00:10]} 66. Kd5 {[%clk 0:00:05]}  Rb7 {[%clk 0:00:08]} 67. Kc5 {[%clk 0:00:04]}  Kb8 {[%clk 0:00:07]} 68. b6 {[%clk 0:00:05]}  Rf7 {[%clk 0:00:02]} 69. Qe8+ {[%clk 0:00:04]} 1-0


[Site "https://www.chess.com"]

[Event "Titled Tuesday Blitz October 31 Early 2023"]
[White "Lehtosaari, Mauri"]
[Black "LiadCuba"]
[WhiteFideId "501999"]
[WhiteElo "2508"]
[BlackElo "2375"]
[Result "0-1"]
[Round "10"]
[TimeControl "180+1"]
[Date "2023.10.31"]
[WhiteClock "0:00:00"]
[BlackClock "0:00:57"]
[Board "76"]

1. d4 {[%clk 0:02:59]}  d5 {[%clk 0:02:59]} 2. Nf3 {[%clk 0:03:00]}  Nf6 {[%clk 0:02:59]} 3. Bg5 {[%clk 0:03:00]}  e6 {[%clk 0:02:56]} 4. e3 {[%clk 0:03:00]}  Be7 {[%clk 0:02:55]} 5. Bd3 {[%clk 0:02:59]}  h6 {[%clk 0:02:54]} 6. Bh4 {[%clk 0:02:59]}  c5 {[%clk 0:02:54]} 7. c3 {[%clk 0:02:59]}  O-O {[%clk 0:02:53]} 8. Nbd2 {[%clk 0:02:59]}  b6 {[%clk 0:02:50]} 9. Ne5 {[%clk 0:02:59]}  Nfd7 {[%clk 0:02:45]} 10. Bg3 {[%clk 0:02:51]}  Nxe5 {[%clk 0:02:45]} 11. Bxe5 {[%clk 0:02:52]}  Ba6 {[%clk 0:02:45]} 12. Bxa6 {[%clk 0:02:40]}  Nxa6 {[%clk 0:02:46]} 13. O-O {[%clk 0:02:40]}  Bd6 {[%clk 0:02:40]} 14. f4 {[%clk 0:02:20]}  f6 {[%clk 0:02:40]} 15. Bxd6 {[%clk 0:02:20]}  Qxd6 {[%clk 0:02:41]} 16. Qg4 {[%clk 0:02:19]}  Rae8 {[%clk 0:02:31]} 17. Nf3 {[%clk 0:02:15]}  b5 {[%clk 0:02:23]} 18. a3 {[%clk 0:02:12]}  Nc7 {[%clk 0:02:21]} 19. Kh1 {[%clk 0:02:07]}  a5 {[%clk 0:02:17]} 20. h3 {[%clk 0:02:05]}  Re7 {[%clk 0:02:12]} 21. Nh4 {[%clk 0:02:04]}  Rb8 {[%clk 0:02:10]} 22. f5 {[%clk 0:01:46]}  e5 {[%clk 0:02:08]} 23. Ng6 {[%clk 0:01:45]}  Rf7 {[%clk 0:01:43]} 24. Qg3 {[%clk 0:01:43]}  Re8 {[%clk 0:01:38]} 25. Rad1 {[%clk 0:01:38]}  c4 {[%clk 0:01:34]} 26. Rd2 {[%clk 0:01:18]}  b4 {[%clk 0:01:33]} 27. Rfd1 {[%clk 0:01:15]}  bxc3 {[%clk 0:01:30]} 28. dxe5 {[%clk 0:00:57]}  fxe5 {[%clk 0:01:31]} 29. bxc3 {[%clk 0:00:57]}  Qxa3 {[%clk 0:01:31]} 30. Rc2 {[%clk 0:00:29]}  Rxf5 {[%clk 0:01:23]} 31. h4 {[%clk 0:00:24]}  Qd6 {[%clk 0:01:20]} 32. Qg4 {[%clk 0:00:18]}  Qf6 {[%clk 0:01:19]} 33. h5 {[%clk 0:00:07]}  Rg5 {[%clk 0:01:13]} 34. Qh3 {[%clk 0:00:07]}  Ne6 {[%clk 0:01:11]} 35. Rb1 {[%clk 0:00:06]}  Nc5 {[%clk 0:01:05]} 36. Ra2 {[%clk 0:00:06]}  Ne4 {[%clk 0:01:03]} 37. Kh2 {[%clk 0:00:05]}  Ng3 {[%clk 0:01:01]} 38. Kg1 {[%clk 0:00:01]}  Nxh5 {[%clk 0:00:59]} 39. Qd7 {[%clk 0:00:02]}  Qxg6 {[%clk 0:00:58]} 40. Rb7 {[%clk 0:00:00]}  Nf6 {[%clk 0:00:57]} 0-1


[Site "https://www.chess.com"]

[Event "Titled Tuesday Blitz October 31 Early 2023"]
[White "Reprintsev, Alexander"]
[Black "Jakubowski, Krzysztof"]
[WhiteFideId "14100541"]
[BlackFideId "1112848"]
[WhiteElo "2506"]
[BlackElo "2653"]
[Result "0-1"]
[Round "10"]
[TimeControl "180+1"]
[Date "2023.10.31"]
[WhiteClock "0:00:50"]
[BlackClock "0:01:15"]
[Board "77"]

1. e4 {[%clk 0:02:56]}  c5 {[%clk 0:02:59]} 2. b3 {[%clk 0:02:56]}  Nf6 {[%clk 0:02:55]} 3. e5 {[%clk 0:02:55]}  Nd5 {[%clk 0:02:55]} 4. Nc3 {[%clk 0:02:56]}  Nxc3 {[%clk 0:02:52]} 5. dxc3 {[%clk 0:02:56]}  Nc6 {[%clk 0:02:50]} 6. Nf3 {[%clk 0:02:55]}  d5 {[%clk 0:02:48]} 7. exd6 {[%clk 0:02:54]}  Qxd6 {[%clk 0:02:46]} 8. Qxd6 {[%clk 0:02:53]}  exd6 {[%clk 0:02:45]} 9. Bf4 {[%clk 0:02:50]}  Bf5 {[%clk 0:02:34]} 10. O-O-O {[%clk 0:02:49]}  O-O-O {[%clk 0:02:33]} 11. Bc4 {[%clk 0:02:46]}  Rd7 {[%clk 0:02:30]} 12. Rhe1 {[%clk 0:02:37]}  h6 {[%clk 0:02:22]} 13. Re8+ {[%clk 0:02:35]}  Kc7 {[%clk 0:02:21]} 14. Bxd6+ {[%clk 0:02:13]}  Rxd6 {[%clk 0:02:16]} 15. Rxd6 {[%clk 0:02:12]}  Kxd6 {[%clk 0:02:15]} 16. Bxf7 {[%clk 0:02:13]}  g5 {[%clk 0:01:55]} 17. Nd2 {[%clk 0:02:12]}  Bg7 {[%clk 0:01:50]} 18. Nc4+ {[%clk 0:02:10]}  Kc7 {[%clk 0:01:50]} 19. Re3 {[%clk 0:01:59]}  b5 {[%clk 0:01:47]} 20. Nd2 {[%clk 0:01:54]}  Rd8 {[%clk 0:01:43]} 21. h3 {[%clk 0:01:47]}  b4 {[%clk 0:01:39]} 22. cxb4 {[%clk 0:01:38]}  Nxb4 {[%clk 0:01:38]} 23. g4 {[%clk 0:01:35]}  Nxa2+ {[%clk 0:01:29]} 24. Kd1 {[%clk 0:01:33]}  Bh7 {[%clk 0:01:23]} 25. Ke1 {[%clk 0:01:07]}  Bc3 {[%clk 0:01:21]} 26. Re7+ {[%clk 0:01:03]}  Kb6 {[%clk 0:01:20]} 27. Re6+ {[%clk 0:01:01]}  Ka5 {[%clk 0:01:18]} 28. Re2 {[%clk 0:00:50]}  Nc1 {[%clk 0:01:15]} 0-1


[Site "https://www.chess.com"]

[Event "Titled Tuesday Blitz October 31 Early 2023"]
[White "Kostiukov, Alexandr"]
[Black "Karamsetty, Jeevan"]
[WhiteFideId "14108100"]
[BlackFideId "2025337"]
[WhiteElo "2416"]
[BlackElo "2596"]
[Result "1-0"]
[Round "10"]
[TimeControl "180+1"]
[Date "2023.10.31"]
[WhiteClock "0:00:06"]
[BlackClock "0:00:21"]
[Board "80"]

1. g3 {[%clk 0:02:53]}  e5 {[%clk 0:02:58]} 2. Bg2 {[%clk 0:02:54]}  d5 {[%clk 0:02:58]} 3. c4 {[%clk 0:02:54]}  c6 {[%clk 0:02:58]} 4. cxd5 {[%clk 0:02:54]}  cxd5 {[%clk 0:02:59]} 5. d4 {[%clk 0:02:54]}  e4 {[%clk 0:02:59]} 6. Nc3 {[%clk 0:02:54]}  Nf6 {[%clk 0:02:59]} 7. Bg5 {[%clk 0:02:54]}  Bb4 {[%clk 0:02:55]} 8. Nh3 {[%clk 0:02:52]}  Nc6 {[%clk 0:02:53]} 9. O-O {[%clk 0:02:50]}  Bxc3 {[%clk 0:02:51]} 10. bxc3 {[%clk 0:02:51]}  h6 {[%clk 0:02:49]} 11. Bxf6 {[%clk 0:02:50]}  Qxf6 {[%clk 0:02:49]} 12. Nf4 {[%clk 0:02:51]}  Be6 {[%clk 0:02:46]} 13. Qb3 {[%clk 0:02:50]}  Ne7 {[%clk 0:02:33]} 14. Qxb7 {[%clk 0:02:48]}  O-O {[%clk 0:02:33]} 15. Rab1 {[%clk 0:02:34]}  Rfc8 {[%clk 0:02:27]} 16. Rfc1 {[%clk 0:02:30]}  Rab8 {[%clk 0:02:11]} 17. Qxb8 {[%clk 0:02:28]}  Rxb8 {[%clk 0:02:12]} 18. Rxb8+ {[%clk 0:02:26]}  Kh7 {[%clk 0:02:12]} 19. Rcb1 {[%clk 0:02:11]}  Bf5 {[%clk 0:02:09]} 20. e3 {[%clk 0:02:05]}  g5 {[%clk 0:02:06]} 21. Ne2 {[%clk 0:02:01]}  Bg4 {[%clk 0:02:03]} 22. Kf1 {[%clk 0:01:48]}  Qa6 {[%clk 0:01:58]} 23. R1b2 {[%clk 0:01:41]}  Qd3 {[%clk 0:01:55]} 24. Ke1 {[%clk 0:01:22]}  Bxe2 {[%clk 0:01:51]} 25. Rxe2 {[%clk 0:01:21]}  Qxc3+ {[%clk 0:01:52]} 26. Rd2 {[%clk 0:01:20]}  Nc6 {[%clk 0:01:46]} 27. Rb3 {[%clk 0:01:08]}  Qc1+ {[%clk 0:01:28]} 28. Rd1 {[%clk 0:00:55]}  Qc4 {[%clk 0:01:25]} 29. Bf1 {[%clk 0:00:52]}  Qa4 {[%clk 0:01:24]} 30. Rb2 {[%clk 0:00:33]}  Nb4 {[%clk 0:01:22]} 31. Rdb1 {[%clk 0:00:32]}  a5 {[%clk 0:01:12]} 32. Be2 {[%clk 0:00:30]}  Qc6 {[%clk 0:01:08]} 33. Kd2 {[%clk 0:00:28]}  Qf6 {[%clk 0:01:06]} 34. Ke1 {[%clk 0:00:26]}  Qc6 {[%clk 0:00:59]} 35. a3 {[%clk 0:00:24]}  Nc2+ {[%clk 0:00:57]} 36. Kd2 {[%clk 0:00:22]}  Nxa3 {[%clk 0:00:57]} 37. Rc1 {[%clk 0:00:22]}  Qa4 {[%clk 0:00:30]} 38. Rc7 {[%clk 0:00:16]}  Kg6 {[%clk 0:00:28]} 39. Rbb7 {[%clk 0:00:14]}  Nb1+ {[%clk 0:00:20]} 40. Ke1 {[%clk 0:00:07]}  Qa1 {[%clk 0:00:20]} 41. Rc1 {[%clk 0:00:06]}  Qa2 {[%clk 0:00:17]} 42. Rbxb1 {[%clk 0:00:05]}  h5 {[%clk 0:00:15]} 43. h3 {[%clk 0:00:04]}  Qa3 {[%clk 0:00:13]} 44. Kf1 {[%clk 0:00:04]}  h4 {[%clk 0:00:13]} 45. gxh4 {[%clk 0:00:03]}  gxh4 {[%clk 0:00:13]} 46. Kg2 {[%clk 0:00:03]}  Qe7 {[%clk 0:00:12]} 47. Bg4 {[%clk 0:00:03]}  Qd6 {[%clk 0:00:11]} 48. Rb2 {[%clk 0:00:01]}  a4 {[%clk 0:00:11]} 49. Rcb1 {[%clk 0:00:01]}  a3 {[%clk 0:00:11]} 50. Rb6 {[%clk 0:00:01]}  Qf6 {[%clk 0:00:09]} 51. Rxf6+ {[%clk 0:00:01]}  Kxf6 {[%clk 0:00:10]} 52. Ra1 {[%clk 0:00:01]}  a2 {[%clk 0:00:11]} 53. Rxa2 {[%clk 0:00:01]}  Kg5 {[%clk 0:00:11]} 54. Ra5 {[%clk 0:00:02]}  f6 {[%clk 0:00:12]} 55. Rxd5+ {[%clk 0:00:02]}  Kg6 {[%clk 0:00:13]} 56. Rf5 {[%clk 0:00:02]}  Kg7 {[%clk 0:00:14]} 57. f3 {[%clk 0:00:03]}  Kg6 {[%clk 0:00:15]} 58. fxe4 {[%clk 0:00:03]}  Kf7 {[%clk 0:00:16]} 59. Kf3 {[%clk 0:00:04]}  Ke6 {[%clk 0:00:17]} 60. Kf4 {[%clk 0:00:05]}  Ke7 {[%clk 0:00:17]} 61. e5 {[%clk 0:00:05]}  Kf7 {[%clk 0:00:18]} 62. exf6 {[%clk 0:00:05]}  Kg6 {[%clk 0:00:19]} 63. f7 {[%clk 0:00:05]}  Kh6 {[%clk 0:00:20]} 64. f8=Q+ {[%clk 0:00:05]}  Kh7 {[%clk 0:00:21]} 65. Rh5+ {[%clk 0:00:05]}  Kg6 {[%clk 0:00:21]} 66. Rh6# {[%clk 0:00:06]} 1-0


[Site "https://www.chess.com"]

[Event "Titled Tuesday Blitz October 31 Early 2023"]
[White "Prieto Aranguren, Alain"]
[Black "Kim, Sergey"]
[WhiteFideId "2268906"]
[BlackFideId "13700570"]
[WhiteElo "2415"]
[BlackElo "2583"]
[Result "1-0"]
[Round "10"]
[TimeControl "180+1"]
[Date "2023.10.31"]
[WhiteClock "0:00:26"]
[BlackClock "0:00:07"]
[Board "81"]

1. e4 {[%clk 0:02:24]}  e5 {[%clk 0:02:59]} 2. Nf3 {[%clk 0:02:15]}  Nc6 {[%clk 0:02:59]} 3. d4 {[%clk 0:02:15]}  exd4 {[%clk 0:02:59]} 4. Bc4 {[%clk 0:02:16]}  Nf6 {[%clk 0:02:58]} 5. O-O {[%clk 0:02:16]}  Nxe4 {[%clk 0:02:58]} 6. Re1 {[%clk 0:02:17]}  d5 {[%clk 0:02:58]} 7. Bxd5 {[%clk 0:02:18]}  Qxd5 {[%clk 0:02:58]} 8. Nc3 {[%clk 0:02:18]}  Qa5 {[%clk 0:02:58]} 9. Nxe4 {[%clk 0:02:19]}  Be6 {[%clk 0:02:58]} 10. Bg5 {[%clk 0:02:19]}  Qd5 {[%clk 0:02:33]} 11. c4 {[%clk 0:02:15]}  Qf5 {[%clk 0:02:30]} 12. Nh4 {[%clk 0:01:13]}  Qa5 {[%clk 0:02:13]} 13. a3 {[%clk 0:01:13]}  Be7 {[%clk 0:01:57]} 14. b4 {[%clk 0:01:11]}  Qb6 {[%clk 0:01:55]} 15. b5 {[%clk 0:00:56]}  Nd8 {[%clk 0:01:43]} 16. Bxe7 {[%clk 0:00:55]}  Kxe7 {[%clk 0:01:44]} 17. a4 {[%clk 0:00:48]}  c5 {[%clk 0:01:38]} 18. Qh5 {[%clk 0:00:43]}  Rc8 {[%clk 0:01:24]} 19. Ng5 {[%clk 0:00:37]}  g6 {[%clk 0:00:44]} 20. Qh6 {[%clk 0:00:37]}  Re8 {[%clk 0:00:17]} 21. Qxh7 {[%clk 0:00:35]}  Kd7 {[%clk 0:00:16]} 22. Nxg6 {[%clk 0:00:34]}  Qd6 {[%clk 0:00:14]} 23. Ne4 {[%clk 0:00:31]}  Qc7 {[%clk 0:00:12]} 24. Nf6+ {[%clk 0:00:26]}  Kd6 {[%clk 0:00:07]} 25. Nxe8+ {[%clk 0:00:26]} 1-0


[Site "https://www.chess.com"]

[Event "Titled Tuesday Blitz October 31 Early 2023"]
[White "Jaskolka, Tomasz"]
[Black "Tsyhanchuk, Stanislav"]
[WhiteFideId "1170791"]
[BlackFideId "13505130"]
[WhiteElo "2562"]
[BlackElo "2411"]
[Result "1-0"]
[Round "10"]
[TimeControl "180+1"]
[Date "2023.10.31"]
[WhiteClock "0:00:06"]
[BlackClock "0:00:01"]
[Board "82"]

1. e4 {[%clk 0:03:00]}  c5 {[%clk 0:02:49]} 2. Nf3 {[%clk 0:03:00]}  Nc6 {[%clk 0:02:46]} 3. b4 {[%clk 0:03:00]}  cxb4 {[%clk 0:02:33]} 4. d4 {[%clk 0:03:00]}  d5 {[%clk 0:02:31]} 5. exd5 {[%clk 0:03:00]}  Qxd5 {[%clk 0:02:01]} 6. c4 {[%clk 0:03:00]}  bxc3 {[%clk 0:02:00]} 7. Nxc3 {[%clk 0:03:01]}  Qa5 {[%clk 0:01:58]} 8. Rb1 {[%clk 0:03:01]}  Qxc3+ {[%clk 0:01:40]} 9. Bd2 {[%clk 0:03:01]}  Qa3 {[%clk 0:01:31]} 10. d5 {[%clk 0:03:02]}  Bg4 {[%clk 0:01:09]} 11. dxc6 {[%clk 0:02:57]}  bxc6 {[%clk 0:00:56]} 12. Rb3 {[%clk 0:02:37]}  Qd6 {[%clk 0:00:42]} 13. Qc2 {[%clk 0:02:22]}  Nf6 {[%clk 0:00:39]} 14. Rc3 {[%clk 0:02:13]}  Bd7 {[%clk 0:00:22]} 15. Bc4 {[%clk 0:02:08]}  e6 {[%clk 0:00:20]} 16. O-O {[%clk 0:02:08]}  Be7 {[%clk 0:00:21]} 17. Re1 {[%clk 0:01:57]}  Nd5 {[%clk 0:00:21]} 18. Rd3 {[%clk 0:01:49]}  O-O {[%clk 0:00:16]} 19. Ne5 {[%clk 0:01:44]}  Bf6 {[%clk 0:00:15]} 20. Rh3 {[%clk 0:01:39]}  g6 {[%clk 0:00:13]} 21. Ng4 {[%clk 0:01:39]}  Bg7 {[%clk 0:00:11]} 22. Bh6 {[%clk 0:01:39]}  f5 {[%clk 0:00:05]} 23. Bxg7 {[%clk 0:01:29]}  Kxg7 {[%clk 0:00:06]} 24. Ne5 {[%clk 0:01:18]}  Rad8 {[%clk 0:00:04]} 25. Qd2 {[%clk 0:01:16]}  h5 {[%clk 0:00:03]} 26. Qg5 {[%clk 0:01:01]}  Ne7 {[%clk 0:00:03]} 27. Rxh5 {[%clk 0:00:57]}  Rh8 {[%clk 0:00:03]} 28. Rxh8 {[%clk 0:00:50]}  Rxh8 {[%clk 0:00:04]} 29. h4 {[%clk 0:00:21]}  Rh5 {[%clk 0:00:04]} 30. Qg3 {[%clk 0:00:21]}  f4 {[%clk 0:00:02]} 31. Qc3 {[%clk 0:00:18]}  Kh7 {[%clk 0:00:01]} 32. Ng4 {[%clk 0:00:11]}  Rf5 {[%clk 0:00:01]} 33. Nf6+ {[%clk 0:00:11]}  Kh6 {[%clk 0:00:01]} 34. Ne8 {[%clk 0:00:06]}  Bxe8 {[%clk 0:00:01]} 35. Qh8# {[%clk 0:00:06]} 1-0


[Site "https://www.chess.com"]